bitfinex/quotes_SOLUSD_20250529
["timestamp","ask_amount","ask_price","bid_price","bid_amount"]
[1748546646109,42.0664749,166.77,166.75,19.07613357]
[1748546646542,36.07005366,166.77,166.75,19.07613357]
[1748546647133,36.07005366,166.77,166.76,0.42648471]
[1748546647337,42.06633596,166.77,166.76,0.42648471]
[1748546647899,42.06633596,166.77,166.76,0.28432314]
[1748546648207,42.06633596,166.77,166.76,0.42648471]
[1748546649924,42.06633596,166.77,166.74,0.42648471]
[1748546650126,57.05704172,166.77,166.74,0.14216157]
[1748546650338,36.07005366,166.75,166.7,18.64964886]
[1748546650543,36.07005366,166.72,166.7,18.64964886]
[1748546650762,36.07005366,166.71,166.7,18.64964886]
[1748546651131,36.07005366,166.71,166.7,19.07613357]
[1748546651552,36.07005366,166.71,166.7,18.79181043]
[1748546651915,36.07005366,166.71,166.7,19.07613357]
[1748546652354,42.06849406,166.71,166.7,19.07613357]
[1748546652517,42.06849406,166.71,166.7,18.79181043]
[1748546652715,36.07005366,166.71,166.7,18.79181043]
[1748546653022,36.07005366,166.73,166.71,0.42648471]
[1748546653430,36.07005366,166.72,166.71,0.42648471]
[1748546654029,36.07005366,166.72,166.71,0.28432314]
[1748546654483,42.06813427,166.72,166.71,0.28432314]
[1748546654619,42.06813427,166.72,166.7,18.64964886]
[1748546654815,36.07005366,166.71,166.7,18.79181043]
[1748546655058,36.07005366,166.71,166.7,18.933972]
[1748546655360,36.07005366,166.71,166.66,18.64964886]
[1748546655556,36.07005366,166.67,166.66,18.64964886]
[1748546655722,36.07005366,166.67,166.66,18.933972]
[1748546656121,36.07005366,166.67,166.66,19.07613357]
[1748546656323,36.07005366,166.67,166.66,18.64964886]
[1748546656727,36.07005366,166.67,166.66,18.79181043]
[1748546656931,36.07005366,166.67,166.66,19.07613357]
[1748546657819,5.99924487,166.69,166.67,0.28432314]
[1748546658016,36.07005366,166.68,166.67,0.28432314]
[1748546658258,36.07005366,166.7,166.67,0.42648471]
[1748546658831,36.07005366,166.73,166.7,18.64964886]
[1748546659033,36.07005366,166.73,166.71,0.42648471]
[1748546659250,5.99628418,166.77,166.73,0.42648471]
[1748546659482,14.98772045,166.81,166.73,0.42648471]
[1748546659751,36.07005366,166.75,166.73,0.42648471]
[1748546659947,36.07005366,166.74,166.73,0.42648471]
[1748546660854,42.06741482,166.74,166.73,0.42648471]
[1748546661230,42.06741482,166.74,166.7,18.64964886]
[1748546661231,42.06741482,166.74,166.71,0.14216157]
[1748546661435,36.07005366,166.72,166.71,0.42648471]
[1748546662852,42.06813427,166.72,166.71,0.42648471]
[1748546665165,14.98851937,166.8,166.71,0.42648471]
[1748546665528,36.07005366,166.75,166.73,0.42648471]
[1748546666667,36.07005366,166.74,166.73,0.42648471]
[1748546668147,36.07005366,166.74,166.72,0.14216157]
[1748546668363,36.07005366,166.74,166.72,0.42648471]
[1748546668656,36.07005366,166.73,166.72,0.42648471]
[1748546669656,54.06998148,166.78,166.72,0.42648471]
[1748546669856,36.07005366,166.74,166.72,0.42648471]
[1748546670163,36.07005366,166.75,166.72,0.42648471]
[1748546670375,36.07005366,166.76,166.72,0.42648471]
[1748546670539,36.07005366,166.74,166.72,0.42648471]
[1748546670738,36.07005366,166.73,166.72,0.42648471]
[1748546671235,20.98447148,166.79,166.72,36.49653837]
[1748546671557,36.07005366,166.78,166.74,0.42648471]
[1748546671942,22.05745873,166.77,166.74,0.42648471]
[1748546672147,22.05745873,166.76,166.74,0.42648471]
[1748546672532,22.05745873,166.75,166.74,0.42648471]
[1748546673354,22.05745873,166.75,166.72,0.14216157]
[1748546673554,22.05745873,166.73,166.72,0.42648471]
[1748546675468,28.05517959,166.73,166.72,0.42648471]
[1748546675768,28.05517959,166.73,166.71,29.56964886]
[1748546675962,22.05745873,166.72,166.69,18.64964886]
[1748546676263,5.99772086,166.73,166.69,18.64964886]
[1748546676264,22.05745873,166.7,166.69,18.64964886]
[1748546676437,22.05745873,166.7,166.68,18.64964886]
[1748546676635,20.99202302,166.73,166.69,0.42648471]
[1748546676835,20.98824658,166.76,166.69,0.42648471]
[1748546677043,20.98824658,166.76,166.69,0.14216157]
[1748546677244,20.98824658,166.76,166.69,0.42648471]
[1748546677476,20.98824658,166.76,166.69,0.28432314]
[1748546677772,22.05745873,166.7,166.69,0.42648471]
[1748546677952,20.98824658,166.76,166.69,0.42648471]
[1748546677953,22.05745873,166.71,166.69,0.42648471]
[1748546679046,5.99700149,166.75,166.69,0.42648471]
[1748546679255,22.05745873,166.71,166.69,0.42648471]
[1748546681550,22.05745873,166.7,166.67,18.64964886]
[1748546681776,22.05745873,166.68,166.67,18.64964886]
[1748546681984,22.05745873,166.68,166.67,18.933972]
[1748546682184,22.05745873,166.68,166.67,18.64964886]
[1748546682387,22.05745873,166.68,166.67,18.933972]
[1748546682682,22.05745873,166.68,166.67,18.64964886]
[1748546683059,28.05697876,166.68,166.67,18.64964886]
[1748546683661,22.05745873,166.68,166.67,18.933972]
[1748546684061,22.05745873,166.68,166.67,19.07613357]
[1748546685194,28.05697876,166.68,166.67,19.07613357]
[1748546687899,22.05745873,166.68,166.67,19.07613357]
[1748546688296,5.99923598,166.69,166.67,19.07613357]
[1748546688479,54.05409664,166.74,166.68,0.28432314]
[1748546688681,20.99202302,166.73,166.68,0.28432314]
[1748546689795,28.05661884,166.69,166.68,0.28432314]
[1748546691573,28.05661884,166.69,166.67,18.64964886]
[1748546691776,44.11491746,166.68,166.66,10.92]
[1748546691963,22.05745873,166.67,166.62,18.64964886]
[1748546692180,22.05745873,166.63,166.62,18.64964886]
[1748546692669,22.05745873,166.63,166.61,10.92]
[1748546692876,22.05745873,166.62,166.61,29.56964886]
[1748546693311,22.05745873,166.62,166.61,29.853972]
[1748546693669,22.05745873,166.62,166.61,29.56964886]
[1748546693864,28.0591392,166.62,166.61,18.933972]
[1748546694312,22.05745873,166.62,166.61,18.933972]
[1748546694621,22.05745873,166.62,166.61,18.64964886]
[1748546694785,22.05745873,166.62,166.61,18.933972]
[1748546695904,6.00024,166.66,166.61,19.07613357]
[1748546696103,6.00024,166.66,166.62,18.933972]
[1748546696302,21.00084002,166.66,166.62,0.28432314]
[1748546697396,22.05745873,166.63,166.62,0.28432314]
[1748546698424,22.05745873,166.63,166.6,0.42648471]
[1748546698717,22.05745873,166.62,166.6,0.42648471]
[1748546700581,22.05745873,166.61,166.6,0.42648471]
[1748546700886,22.05745873,166.61,166.6,0.14216157]
[1748546701195,22.05745873,166.62,166.6,0.28432314]
[1748546701404,22.05745873,166.62,166.6,0.42648471]
[1748546702019,22.05745873,166.61,166.6,0.42648471]
[1748546704898,28.05949942,166.61,166.6,0.42648471]
[1748546705418,28.05949942,166.61,166.56,13.0174]
[1748546705583,22.05745873,166.57,166.51,88.5022]
[1748546705780,22.05745873,166.59,166.51,91.4425059]
[1748546706081,21.00714242,166.61,166.55,26.0]
[1748546706082,6.00204069,166.61,166.55,26.0]
[1748546706281,22.05745873,166.59,166.56,18.79181043]
[1748546706535,22.05745873,166.59,166.57,0.28432314]
[1748546706714,22.05745873,166.58,166.57,0.28432314]
[1748546707209,15.00030612,166.67,166.59,0.28432314]
[1748546707383,22.05745873,166.63,166.61,0.28432314]
[1748546707901,22.05745873,166.64,166.61,0.28432314]
[1748546709308,22.05745873,166.65,166.61,0.28432314]
[1748546709619,22.05745873,166.67,166.63,0.28432314]
[1748546710121,22.05745873,166.66,166.63,0.28432314]
[1748546710619,5.99880023,166.7,166.65,0.28432314]
[1748546710831,22.05745873,166.69,166.65,0.28432314]
[1748546711501,28.0568107,166.69,166.65,0.28432314]
[1748546711702,22.05745873,166.66,166.65,0.28432314]
[1748546711888,36.00474312,166.66,166.65,0.14216157]
[1748546712533,36.00474312,166.67,166.65,0.28432314]
[1748546712825,36.00474312,166.68,166.65,0.28432314]
[1748546713323,5.99935197,166.69,166.65,0.28432314]
[1748546713506,42.00409509,166.69,166.65,0.28432314]
[1748546716122,42.00403785,166.69,166.67,0.28432314]
[1748546716625,5.99892864,166.7,166.67,0.28432314]
[1748546716793,36.00474312,166.69,166.67,0.28432314]
[1748546717131,36.00474312,166.68,166.67,0.28432314]
[1748546718027,42.00426315,166.68,166.67,0.28432314]
[1748546718430,36.00474312,166.68,166.66,0.42648471]
[1748546718732,39.0,166.74,166.66,0.42648471]
[1748546718913,36.00474312,166.7,166.66,0.42648471]
[1748546719247,36.00474312,166.69,166.66,0.42648471]
[1748546720114,42.00426315,166.68,166.66,0.42648471]
[1748546721213,36.00474312,166.69,166.66,0.42648471]
[1748546722101,42.00411174,166.69,166.66,0.42648471]
[1748546723323,42.00396917,166.69,166.66,0.42648471]
[1748546723528,14.99324159,166.75,166.66,36.43122783]
[1748546723709,36.00474312,166.72,166.68,19.07613357]
[1748546724129,36.00474312,166.71,166.68,19.07613357]
[1748546724940,42.00328298,166.71,166.68,19.07613357]
[1748546725437,36.00474312,166.7,166.68,0.42648471]
[1748546725620,42.00328298,166.71,166.68,19.07613357]
[1748546726738,36.00474312,166.7,166.68,19.07613357]
[1748546727458,36.00474312,166.7,166.68,0.42648471]
[1748546727760,36.00474312,166.71,166.68,19.07613357]
[1748546728736,42.00293338,166.72,166.68,19.07613357]
[1748546728932,42.00293338,166.72,166.68,55.08087669]
[1748546729133,42.00259973,166.73,166.68,61.08038256]
[1748546729343,36.00474312,166.75,166.7,55.08087669]
[1748546729551,42.001385,166.76,166.72,19.07613357]
[1748546729935,36.00474312,166.75,166.72,19.07613357]
[1748546730126,36.00474312,166.75,166.72,0.42648471]
[1748546730551,42.001385,166.76,166.72,0.42648471]
[1748546731240,5.99664188,166.76,166.72,0.42648471]
[1748546731442,36.00474312,166.74,166.72,0.42648471]
[1748546732555,36.00474312,166.74,166.72,3.4604784]
[1748546733254,42.00246398,166.73,166.72,0.42648471]
[1748546733465,42.00246398,166.73,166.7,26.0]
[1748546733466,42.00246398,166.73,166.69,18.64964886]
[1748546733631,36.00474312,166.71,166.7,0.14216157]
[1748546734050,22.07679174,166.71,166.68,18.64964886]
[1748546734253,22.07679174,166.7,166.68,18.64964886]
[1748546734440,22.07679174,166.7,166.69,0.42648471]
[1748546735255,28.07559197,166.7,166.69,0.14216157]
[1748546735753,28.07559197,166.7,166.69,0.42648471]
[1748546737363,14.99430216,166.73,166.69,0.42648471]
[1748546737538,22.07679174,166.71,166.69,0.42648471]
[1748546738137,22.07679174,166.7,166.69,0.42648471]
[1748546739273,22.07679174,166.71,166.69,0.42648471]
[1748546739561,28.07461701,166.73,166.69,0.42648471]
[1748546741259,28.07461701,166.73,166.71,0.42648471]
[1748546741736,33.57679174,166.77,166.71,0.42648471]
[1748546741737,22.07679174,166.74,166.71,0.42648471]
[1748546741937,22.07679174,166.75,166.73,0.42648471]
[1748546742380,28.07343362,166.76,166.73,19.07613357]
[1748546742666,5.99664188,166.76,166.73,19.07613357]
[1748546743638,14.98900155,166.79,166.73,19.07613357]
[1748546743846,22.07679174,166.77,166.73,41.15292531]
[1748546744040,22.07679174,166.77,166.73,51.99292531]
[1748546744740,5.99520383,166.8,166.73,51.99292531]
[1748546745040,22.07679174,166.78,166.73,51.99292531]
[1748546745253,22.07679174,166.79,166.75,19.07613357]
[1748546745641,5.99592277,166.78,166.75,19.07613357]
[1748546745966,28.07271451,166.78,166.75,19.07613357]
[1748546746543,28.07271451,166.78,166.75,0.42648471]
[1748546746544,5.99592277,166.78,166.75,0.42648471]
[1748546746748,28.07271451,166.78,166.75,0.42648471]
[1748546747349,22.07679174,166.76,166.73,10.84]
[1748546747567,22.07679174,166.75,166.74,18.64964886]
[1748546747770,28.07379323,166.75,166.74,19.07613357]
[1748546748555,5.99700149,166.75,166.74,19.07613357]
[1748546748872,5.99664308,166.76,166.75,0.42648471]
[1748546749249,5.99520383,166.8,166.77,0.42648471]
[1748546749456,22.07679174,166.78,166.77,0.42648471]
[1748546749962,28.07271451,166.78,166.77,0.42648471]
[1748546750159,5.99592277,166.78,166.77,0.42648471]
[1748546750469,28.07271451,166.78,166.77,0.42648471]
[1748546751879,28.07271451,166.78,166.76,0.42648471]
[1748546752261,22.07679174,166.77,166.76,0.42648471]
[1748546753758,28.07249185,166.79,166.75,0.42648471]
[1748546753971,5.99570011,166.79,166.75,0.42648471]
[1748546754163,26.48418917,166.85,166.77,0.42648471]
[1748546754482,22.07679174,166.81,166.77,0.42648471]
[1748546754888,22.07679174,166.84,166.82,0.14216157]
[1748546755180,22.07679174,166.85,166.82,0.14216157]
[1748546756162,28.07055822,166.84,166.82,0.14216157]
[1748546757065,5.99376648,166.84,166.82,0.14216157]
[1748546757275,28.07055822,166.84,166.82,0.14216157]
[1748546757762,22.07679174,166.83,166.82,0.14216157]
[1748546758164,28.07091749,166.83,166.82,0.14216157]
[1748546760491,22.07679174,166.84,166.82,0.14216157]
[1748546760692,22.07679174,166.85,166.82,0.14216157]
[1748546761192,22.07679174,166.86,166.82,0.14216157]
[1748546761393,22.07679174,166.87,166.84,0.14216157]
[1748546761971,22.07679174,166.86,166.84,0.14216157]
[1748546762683,28.06990347,166.86,166.84,0.14216157]
[1748546762883,5.99311173,166.86,166.84,0.14216157]
[1748546763075,28.06990347,166.86,166.84,0.14216157]
[1748546763891,22.07679174,166.85,166.84,0.14216157]
[1748546764809,28.07019899,166.85,166.84,0.14216157]
[1748546766003,28.07019899,166.85,166.82,19.07613357]
[1748546766206,22.07679174,166.83,166.82,18.64964886]
[1748546766409,22.07679174,166.83,166.81,18.64964886]
[1748546766773,5.99412575,166.83,166.82,0.42648471]
[1748546767519,20.9744112,166.87,166.82,0.42648471]
[1748546768014,22.07679174,166.83,166.82,0.42648471]
[1748546768187,22.07679174,166.84,166.82,0.42648471]
[1748546768573,5.99268891,166.87,166.82,0.42648471]
[1748546768809,22.07679174,166.85,166.82,0.42648471]
[1748546769004,28.07031571,166.85,166.82,0.42648471]
[1748546769209,22.07679174,166.86,166.84,0.42648471]
[1748546769579,22.07679174,166.85,166.84,0.42648471]
[1748546769774,22.07679174,166.86,166.84,0.42648471]
[1748546769979,22.07679174,166.85,166.84,0.42648471]
[1748546770786,28.07019899,166.85,166.84,0.42648471]
[1748546770984,28.07019899,166.85,166.8,10.78]
[1748546771186,20.97692538,166.85,166.81,18.64964886]
[1748546771397,22.07679174,166.82,166.81,18.64964886]
[1748546771596,22.07679174,166.82,166.81,18.933972]
[1748546772012,20.97692538,166.85,166.82,0.42648471]
[1748546772202,22.07679174,166.83,166.82,0.42648471]
[1748546772916,28.07091749,166.83,166.82,0.42648471]
[1748546773912,5.99412575,166.83,166.82,0.42648471]
[1748546774115,28.07091749,166.83,166.82,0.42648471]
[1748546774297,5.99412575,166.83,166.82,0.42648471]
[1748546774497,28.07091749,166.83,166.82,0.42648471]
[1748546775603,43.05623188,166.83,166.75,17.3253]
[1748546775809,43.05623188,166.83,166.76,18.64964886]
[1748546776025,22.07679174,166.77,166.76,18.64964886]
[1748546776605,22.07679174,166.77,166.76,19.07613357]
[1748546776790,50.95006892,166.83,166.77,0.42648471]
[1748546777107,22.07679174,166.78,166.77,0.28432314]
[1748546777287,28.07271451,166.78,166.77,0.42648471]
[1748546777921,5.99592277,166.78,166.77,0.42648471]
[1748546778122,5.99592277,166.78,166.76,18.64964886]
[1748546778123,50.14950625,166.78,166.76,18.64964886]
[1748546778413,44.15358348,166.77,166.76,18.64964886]
[1748546778822,44.15358348,166.77,166.75,10.78]
[1748546779118,44.15358348,166.77,166.7,10.78]
[1748546779119,22.07679174,166.76,166.7,10.78]
[1748546779328,22.07679174,166.76,166.67,6.1198]
[1748546779329,22.07679174,166.71,166.67,6.1198]
[1748546779617,22.07679174,166.71,166.65,10.78]
[1748546779618,64.78,166.72,166.65,10.78]
[1748546779825,64.78,166.72,166.62,6.1632]
[1748546779826,22.07679174,166.66,166.62,6.1632]
[1748546780122,22.07679174,166.63,166.61,2.1079]
[1748546780302,22.07679174,166.68,166.61,2.1079]
[1748546780303,22.07679174,166.62,166.61,2.1079]
[1748546780493,22.07679174,166.68,166.62,18.64964886]
[1748546780494,22.07679174,166.63,166.62,18.64964886]
[1748546781213,22.07679174,166.63,166.62,19.07613357]
[1748546781421,22.07679174,166.63,166.62,18.64964886]
[1748546781806,22.07679174,166.65,166.63,0.42648471]
[1748546782198,22.07679174,166.66,166.63,0.42648471]
[1748546782709,5.99982073,166.68,166.63,0.42648471]
[1748546782710,22.07679174,166.65,166.63,0.42648471]
[1748546783097,22.07679174,166.68,166.65,0.42648471]
[1748546783407,22.07679174,166.7,166.67,0.42648471]
[1748546783605,22.07679174,166.71,166.67,22.50327645]
[1748546783917,5.99772086,166.73,166.69,0.42648471]
[1748546784323,26.31783783,166.74,166.71,0.42648471]
[1748546784495,22.07679174,166.72,166.71,0.42648471]
[1748546784914,22.07679174,166.72,166.69,0.14216157]
[1748546785203,22.07679174,166.7,166.69,0.14216157]
[1748546785424,41.31124073,166.74,166.69,0.14216157]
[1748546785617,22.07679174,166.71,166.69,0.14216157]
[1748546785829,22.07679174,166.71,166.69,0.42648471]
[1748546786010,35.9739607,166.71,166.69,0.42648471]
[1748546786727,41.97207985,166.72,166.69,0.42648471]
[1748546787024,41.97207095,166.72,166.69,0.42648471]
[1748546787532,35.9739607,166.73,166.71,0.42648471]
[1748546787826,20.32041733,166.74,166.71,0.42648471]
[1748546787827,35.9739607,166.72,166.71,0.42648471]
[1748546789006,5.99800697,166.73,166.71,0.42648471]
[1748546789198,26.31781877,166.74,166.71,0.42648471]
[1748546789402,35.9739607,166.73,166.71,0.42648471]
[1748546789600,35.9739607,166.72,166.71,0.42648471]
[1748546789824,26.31781877,166.74,166.69,0.42648471]
[1748546790131,35.9739607,166.72,166.69,0.42648471]
[1748546790793,41.97173826,166.73,166.71,0.42648471]
[1748546791407,35.9739607,166.73,166.71,0.42648471]
[1748546791626,62.29182199,166.74,166.71,0.42648471]
[1748546792297,41.97140466,166.74,166.71,0.42648471]
[1748546793030,35.9739607,166.73,166.71,0.42648471]
[1748546793938,14.99193374,166.76,166.68,18.64964886]
[1748546793939,35.9739607,166.72,166.68,18.64964886]
[1748546794108,35.9739607,166.69,166.66,18.64964886]
[1748546794310,35.9739607,166.68,166.66,18.64964886]
[1748546794750,35.9739607,166.69,166.67,0.42648471]
[1748546795936,35.9739607,166.68,166.67,0.42648471]
[1748546796320,11.5,166.81,166.69,0.42648471]
[1748546796523,11.5,166.81,166.67,101.16044541]
[1748546796524,38.76,166.8,166.73,0.42648471]
[1748546796714,35.9739607,166.76,166.73,0.42648471]
[1748546796914,35.9739607,166.75,166.73,0.42648471]
[1748546797724,41.9712986,166.75,166.73,0.42648471]
[1748546798643,35.9739607,166.75,166.73,0.42648471]
[1748546799022,41.97068806,166.76,166.73,0.42648471]
[1748546799728,41.97031645,166.77,166.73,0.42648471]
[1748546799925,5.99635575,166.77,166.75,0.42648471]
[1748546800752,5.99635575,166.77,166.75,19.07613357]
[1748546801323,39.1721,166.83,166.75,19.07613357]
[1748546801324,5.99588381,166.79,166.75,19.07613357]
[1748546801629,41.96984451,166.79,166.75,19.07613357]
[1748546801829,35.9739607,166.78,166.75,19.07613357]
[1748546802643,5.99448507,166.82,166.77,55.05009427]
[1748546802946,41.96844577,166.82,166.77,55.05009427]
[1748546803151,41.96844577,166.82,166.77,19.07613357]
[1748546803337,41.96844577,166.82,166.77,55.05009427]
[1748546803655,35.9739607,166.81,166.77,55.05009427]
[1748546804236,5.99376648,166.84,166.77,61.04624162]
[1748546804556,35.9739607,166.82,166.79,19.07613357]
[1748546805426,35.9739607,166.82,166.79,0.42648471]
[1748546806356,35.9739607,166.82,166.79,19.07613357]
[1748546806553,9.34225878,166.82,166.79,19.07613357]
[1748546807130,9.34225878,166.82,166.78,19.07613357]
[1748546807559,35.9739607,166.8,166.78,19.07613357]
[1748546807852,35.9739607,166.79,166.77,18.64964886]
[1748546808051,35.9739607,166.78,166.77,18.64964886]
[1748546808236,20.98083701,166.82,166.78,0.42648471]
[1748546809437,5.99462433,166.82,166.78,0.42648471]
[1748546809763,35.9739607,166.8,166.78,0.42648471]
[1748546810823,41.96935243,166.8,166.78,0.42648471]
[1748546811241,5.99539173,166.8,166.78,0.42648471]
[1748546811455,41.96935243,166.8,166.78,0.42648471]
[1748546813043,5.99539173,166.8,166.78,0.42648471]
[1748546813442,41.96935243,166.8,166.78,0.42648471]
[1748546813966,28.04664807,166.8,166.78,0.42648471]
[1748546815170,22.05125634,166.81,166.78,0.42648471]
[1748546816462,22.05125634,166.8,166.78,0.42648471]
[1748546817152,20.97692538,166.85,166.78,0.42648471]
[1748546817359,22.05125634,166.81,166.78,0.42648471]
[1748546818834,28.04624318,166.81,166.78,0.42648471]
[1748546819031,5.99498684,166.81,166.78,0.42648471]
[1748546819235,28.04624318,166.81,166.78,0.42648471]
[1748546820755,22.05125634,166.8,166.78,0.42648471]
[1748546821939,28.04646693,166.8,166.78,0.42648471]
[1748546822563,22.05125634,166.79,166.73,18.64964886]
[1748546822741,22.05125634,166.74,166.69,6.1596]
[1748546822945,22.05125634,166.71,166.69,6.1596]
[1748546823345,22.05125634,166.71,166.7,19.07613357]
[1748546823571,22.05125634,166.73,166.7,19.07613357]
[1748546824079,28.04903723,166.73,166.7,19.07613357]
[1748546824381,28.04903723,166.73,166.7,18.79181043]
[1748546824562,22.05125634,166.72,166.71,0.14216157]
[1748546824885,22.05125634,166.72,166.71,0.28432314]
[1748546825779,5.9962823,166.77,166.71,0.28432314]
[1748546825982,22.05125634,166.77,166.75,0.28432314]
[1748546827261,5.99603531,166.78,166.75,0.28432314]
[1748546827262,22.05125634,166.76,166.75,0.28432314]
[1748546828386,5.99602922,166.78,166.74,0.42648471]
[1748546828685,22.05125634,166.77,166.74,0.42648471]
[1748546829686,22.05125634,166.76,166.74,0.42648471]
[1748546830151,28.0476157,166.77,166.74,0.42648471]
[1748546830584,22.05125634,166.76,166.74,0.42648471]
[1748546832279,28.047956,166.76,166.74,0.42648471]
[1748546832765,22.05125634,166.76,166.74,0.42648471]
[1748546833577,28.04794265,166.76,166.74,0.42648471]
[1748546834977,22.05125634,166.78,166.74,0.42648471]
[1748546835774,5.99448507,166.82,166.78,0.42648471]
[1748546835982,22.05125634,166.81,166.78,0.42648471]
[1748546836483,28.04623802,166.81,166.78,0.42648471]
[1748546836855,22.05125634,166.8,166.78,0.42648471]
[1748546837054,22.05125634,166.79,166.78,0.42648471]
[1748546838789,61.12335634,166.86,166.78,0.42648471]
[1748546838790,22.05125634,166.8,166.78,0.42648471]
[1748546839113,22.05125634,166.81,166.78,0.42648471]
[1748546839294,22.05125634,166.8,166.78,0.42648471]
[1748546840418,5.99340725,166.85,166.78,0.42648471]
[1748546840592,22.05125634,166.81,166.78,0.42648471]
[1748546841791,28.04641265,166.81,166.78,0.42648471]
[1748546841991,22.05125634,166.8,166.78,0.42648471]
[1748546843203,22.05125634,166.79,166.78,0.42648471]
[1748546843414,22.05125634,166.79,166.77,18.64964886]
[1748546843612,22.05125634,166.78,166.77,18.64964886]
[1748546843800,28.04717911,166.78,166.77,18.933972]
[1748546844008,28.04717911,166.78,166.75,18.64964886]
[1748546844215,22.05125634,166.77,166.76,0.42648471]
[1748546845904,14.98711108,166.81,166.76,0.42648471]
[1748546846090,22.05125634,166.78,166.76,0.42648471]
[1748546846298,5.99448507,166.82,166.76,0.42648471]
[1748546846501,22.05125634,166.81,166.78,0.42648471]
[1748546846897,5.99448507,166.82,166.78,0.42648471]
[1748546846898,28.04574141,166.82,166.78,0.42648471]
[1748546847716,22.05125634,166.81,166.78,0.42648471]
[1748546848218,28.04618068,166.81,166.78,0.42648471]
[1748546849101,22.05125634,166.81,166.78,0.42648471]
[1748546849730,22.05125634,166.81,166.8,0.42648471]
[1748546850308,5.99448268,166.83,166.8,0.42648471]
[1748546850631,22.05125634,166.82,166.8,0.42648471]
[1748546850801,22.05125634,166.81,166.8,0.42648471]
[1748546851917,28.04610077,166.81,166.8,0.42648471]
[1748546852310,22.05125634,166.81,166.8,0.42648471]
[1748546852623,28.04610077,166.81,166.8,0.42648471]
[1748546853320,22.05125634,166.81,166.8,0.42648471]
[1748546854018,22.05125634,166.82,166.8,0.42648471]
[1748546854215,22.05125634,166.83,166.8,0.42648471]
[1748546854629,22.05125634,166.82,166.81,19.07613357]
[1748546855100,22.05125634,166.82,166.81,0.42648471]
[1748546855302,12.12787177,166.87,166.83,18.64964886]
[1748546855523,18.12069391,166.87,166.84,0.42648471]
[1748546856101,33.1024162,166.87,166.84,0.42648471]
[1748546856727,22.05125634,166.85,166.84,0.42648471]
[1748546857114,33.1024162,166.87,166.84,0.42648471]
[1748546857442,22.05125634,166.85,166.82,0.42648471]
[1748546857622,22.05125634,166.83,166.82,0.42648471]
[1748546858534,22.05125634,166.83,166.79,18.64964886]
[1748546858841,22.05125634,166.8,166.79,18.64964886]
[1748546858998,22.05125634,166.8,166.79,19.07613357]
[1748546859198,33.6205162,166.87,166.79,19.07613357]
[1748546859402,22.05125634,166.86,166.8,0.42648471]
[1748546860521,22.05125634,166.81,166.8,0.42648471]
[1748546861625,28.04610077,166.81,166.8,0.42648471]
[1748546862318,43.03321185,166.81,166.74,2.1023]
[1748546862499,43.03321185,166.81,166.75,18.64964886]
[1748546862500,20.98195551,166.81,166.75,18.64964886]
[1748546862819,22.05125634,166.76,166.73,10.64]
[1748546863015,22.05125634,166.75,166.74,19.07613357]
[1748546863504,22.05125634,166.76,166.74,19.07613357]
[1748546863703,22.05125634,166.77,166.74,19.07613357]
[1748546864102,22.05125634,166.76,166.74,19.07613357]
[1748546869031,22.05125634,166.75,166.74,18.64964886]
[1748546869819,22.05125634,166.75,166.74,19.07613357]
[1748546870050,22.05125634,166.75,166.74,18.64964886]
[1748546870427,22.05125634,166.75,166.74,19.07613357]
[1748546870842,14.99077706,166.77,166.74,19.07613357]
[1748546871153,22.05125634,166.77,166.75,0.28432314]
[1748546872536,22.05125634,166.76,166.75,0.28432314]
[1748546872933,28.04789822,166.76,166.75,0.28432314]
[1748546873312,28.04789822,166.76,166.73,0.42648471]
[1748546873513,22.05125634,166.74,166.73,0.42648471]
[1748546876417,5.99701924,166.75,166.73,0.42648471]
[1748546876842,22.05125634,166.74,166.73,0.42648471]
[1748546878853,5.99678724,166.76,166.73,0.42648471]
[1748546879022,22.05125634,166.74,166.73,0.42648471]
[1748546885057,28.0486175,166.74,166.73,0.42648471]
[1748546886051,28.0486175,166.74,166.71,18.933972]
[1748546886228,22.05125634,166.72,166.71,18.64964886]
[1748546886427,22.05125634,166.72,166.69,18.64964886]
[1748546886660,22.05125634,166.72,166.7,0.42648471]
[1748546886826,22.05125634,166.73,166.7,0.42648471]
[1748546887259,22.05125634,166.73,166.71,18.64964886]
[1748546887438,22.05125634,166.73,166.72,0.42648471]
[1748546888335,28.0489772,166.73,166.72,0.42648471]
[1748546889356,22.05125634,166.73,166.71,0.42648471]
[1748546890367,22.05125634,166.72,166.71,0.42648471]
[1748546891963,22.05125634,166.73,166.71,0.42648471]
[1748546894473,22.05125634,166.72,166.71,0.42648471]
[1748546896049,28.04898004,166.73,166.71,0.42648471]
[1748546896675,28.04898004,166.73,166.7,21.69449976]
[1748546896676,22.05125634,166.72,166.7,21.69449976]
[1748546896844,22.05125634,166.71,166.7,21.69449976]
[1748546897045,22.05125634,166.71,166.7,22.12098447]
[1748546897847,28.04969674,166.71,166.7,22.12098447]
[1748546898044,28.04969674,166.71,166.7,0.42648471]
[1748546898354,28.04969674,166.71,166.7,0.14216157]
[1748546899076,28.04969674,166.71,166.69,18.64964886]
[1748546899375,22.05125634,166.7,166.69,19.07613357]
[1748546899579,22.05125634,166.7,166.69,18.79181043]
[1748546899882,22.05125634,166.7,166.69,18.933972]